bitfinex/quotes_ETHUSD_20250703
["timestamp","ask_amount","ask_price","bid_price","bid_amount"]
[1751551875039,11.5815,2626.1,2625.4,3.80886684]
[1751551875240,3.80830484,2625.9,2625.5,0.03808798]
[1751551875436,41.91978833,2625.9,2625.2,3.80913999]
[1751551875640,3.8085082,2625.7,2625.2,3.8091694]
[1751551876453,3.80836316,2625.8,2625.0,3.80938848]
[1751551876656,3.80865846,2625.6,2625.1,3.80929895]
[1751551876846,3.80886818,2625.5,2625.0,3.80949876]
[1751551877049,3.80873134,2625.6,2625.1,3.8093619]
[1751551877464,3.80858677,2625.7,2625.2,3.8092176]
[1751551877669,3.80842442,2625.8,2625.3,3.80907344]
[1751551877849,3.80852809,2625.7,2625.2,3.80915253]
[1751551878049,3.8085851,2625.7,2625.2,3.80915253]
[1751551878372,13.8085851,2625.7,2625.2,3.80915253]
[1751551878740,3.80867359,2625.6,2625.1,3.80930775]
[1751551878941,13.80857512,2625.7,2625.0,3.80947904]
[1751551879266,3.80892596,2625.5,2624.8,0.0937]
[1751551879474,3.8091872,2625.3,2624.8,3.80978116]
[1751551879641,33.80872137,2625.6,2625.1,3.80930379]
[1751551879839,3.80874582,2625.6,2625.1,3.80927196]
[1751551880169,3.8087316,2625.6,2625.1,3.80927196]
[1751551880342,7.53109388,2625.7,2624.6,0.55]
[1751551880343,6.66452407,2625.7,2625.0,0.03809523]
[1751551880542,7.53199012,2625.7,2625.2,3.80912865]
[1751551880743,7.53195642,2625.7,2625.1,3.80937869]
[1751551880946,7.53195642,2625.7,2624.8,0.03809814]
[1751551881141,5.959091,2625.7,2624.8,0.43979957]
[1751551881372,5.09168594,2625.7,2625.2,3.80917304]
[1751551881565,1.2831,2625.7,2625.3,3.84717813]
[1751551881751,1.2831,2625.7,2625.3,3.84713981]
[1751551881957,5.09168031,2625.7,2625.3,0.03809088]
[1751551882156,1.2831,2625.7,2625.3,0.03809088]
[1751551882472,1.2792,2626.2,2625.4,3.80884395]
[1751551882667,3.80841138,2625.8,2625.3,3.80898394]
[1751551882867,3.80811573,2626.0,2625.3,3.80898394]
[1751551882868,13.80822829,2625.9,2625.3,3.80898394]
[1751551883057,13.80822829,2625.9,2624.8,0.43979957]
[1751551883058,1.3288,2625.6,2624.8,0.53349957]
[1751551883374,1.3288,2625.6,2625.1,3.80923949]
[1751551883566,5.13746575,2625.6,2625.1,3.80923949]
[1751551883965,3.80884302,2625.5,2625.0,3.80944381]
[1751551884165,3.80884302,2625.5,2625.0,3.809444]
[1751551884166,3.80884322,2625.5,2625.0,3.809444]
[1751551884559,1.46758731,2625.9,2625.1,0.03809378]
[1751551884758,11.6305,2625.9,2625.5,3.80873145]
[1751551884965,1.2845,2625.9,2625.4,0.03808943]
[1751551885151,1.2845,2625.9,2625.0,3.8095238]
[1751551885346,1.2845,2625.9,2625.6,3.80860968]
[1751551885979,1.2845,2625.9,2625.5,3.80873041]
[1751551886186,1.2845,2625.9,2625.6,3.80858004]
[1751551886482,1.2845,2625.9,2625.5,3.80873126]
[1751551886679,1.2845,2625.9,2625.6,3.80863357]
[1751551887454,10.0,2626.1,2625.8,3.80828811]
[1751551887673,15.98046221,2627.2,2625.9,3.84630031]
[1751551887674,1.3448,2626.5,2625.9,3.84630031]
[1751551887989,3.80741607,2626.5,2626.0,0.0937]
[1751551888295,3.80707648,2626.7,2626.2,3.80770976]
[1751551888453,0.86759993,2626.7,2626.3,3.80759379]
[1751551888653,2.11379993,2626.8,2626.2,0.03807783]
[1751551888894,2.11379993,2626.8,2626.2,3.84578422]
[1751551888895,3.80713768,2626.7,2626.2,3.84578422]
[1751551889092,3.80713768,2626.7,2626.2,0.03807783]
[1751551889596,11.2462,2626.8,2626.1,3.84596782]
[1751551889799,1.2462,2626.8,2626.1,0.03807928]
[1751551889970,1.2462,2626.8,2626.0,0.0937]
[1751551890186,3.8071316,2626.7,2626.2,3.80770973]
[1751551890483,1.2462,2626.8,2626.3,0.03807638]
[1751551890669,5.05318201,2626.8,2626.3,3.80757319]
[1751551891340,3.80706183,2626.7,2626.2,3.80771228]
[1751551891470,1.2462,2626.8,2626.0,0.0937]
[1751551891795,1.2462,2626.8,2626.4,3.80741363]
[1751551892173,0.02,2626.9,2626.5,3.80734818]
[1751551892403,0.02,2626.9,2626.5,3.84542166]
[1751551892806,0.02,2626.9,2626.5,4.39542166]
[1751551893220,0.02,2626.9,2626.8,4.35691335]
[1751551893383,0.02,2627.2,2627.1,4.35647862]
[1751551894377,0.02,2627.2,2627.1,14.35647862]
[1751551894884,0.02,2627.5,2627.4,4.35604399]
[1751551895214,0.02,2627.5,2627.4,4.39410442]
[1751551895424,0.02,2627.5,2627.4,14.39410442]
[1751551895574,0.02,2627.7,2627.4,14.39410442]
[1751551895575,1e-08,2627.7,2627.6,4.3557543]
[1751551895772,1e-08,2627.7,2627.6,14.39381184]
[1751551895975,0.02,2627.8,2627.7,14.35560946]
[1751551895976,1e-08,2627.8,2627.7,14.35560946]
[1751551896207,1e-08,2627.8,2627.7,16.46760946]
[1751551897885,0.02,2628.8,2628.7,4.35416175]
[1751551898091,0.02,2628.8,2628.7,23.37689553]
[1751551898285,0.02,2628.8,2628.7,15.11585392]
[1751551898480,0.02,2628.8,2628.7,25.45085392]
[1751551898708,0.02,2628.8,2628.7,1.31169217]
[1751551898940,0.02,2628.8,2628.5,8.773]
[1751551899593,3.82401835,2628.8,2628.4,0.55]
[1751551899795,0.02,2628.8,2628.4,0.55]
[1751551900036,3.82405555,2628.8,2627.9,8.22]
[1751551900328,0.38440556,2628.7,2628.0,0.03805175]
[1751551900502,0.02,2628.8,2628.7,3.80416175]
[1751551900703,0.02,2628.8,2628.7,4.35416175]
[1751551901899,0.02,2628.8,2627.7,3.80549212]
[1751551902098,3.82411913,2628.8,2628.3,3.80470026]
[1751551902297,0.02,2628.8,2628.4,12.02258511]
[1751551902503,0.02,2628.8,2628.5,3.8044512]
[1751551902703,0.02,2628.8,2628.5,3.84249571]
[1751551903008,0.02,2628.8,2628.7,4.35416175]
[1751551903215,0.02,2628.8,2628.7,14.35416175]
[1751551903413,1e-08,2628.8,2628.7,14.35416175]
[1751551905221,1e-08,2628.8,2628.7,12.56916175]
[1751551905611,1e-08,2628.8,2628.7,12.01916175]
[1751551905928,1e-08,2628.8,2628.7,3.80416175]
[1751551906294,1e-08,2628.8,2628.2,12.01976585]
[1751551906616,1e-08,2628.8,2628.6,3.80429564]
[1751551906810,1e-08,2628.8,2628.4,3.80449582]
[1751551906811,1e-08,2628.8,2628.5,3.80438082]
[1751551907006,1.2457,2628.7,2628.4,8.215]
[1751551907205,1.75267298,2628.7,2628.4,3.80459595]
[1751551907405,1.2457,2628.7,2628.6,3.80430647]
[1751551907595,1e-08,2628.8,2628.5,3.84244006]
[1751551907798,1e-08,2628.8,2628.4,3.80452753]
[1751551908121,1e-08,2628.8,2628.5,3.80440177]
[1751551908322,1e-08,2628.8,2628.4,3.80451727]
[1751551909102,1e-08,2628.8,2628.5,3.8044255]
[1751551909424,1e-08,2628.8,2628.6,0.03804306]
[1751551909723,3.8042289,2628.7,2628.1,3.80495629]
[1751551909926,1.1585,2628.3,2627.4,4.27612169]
[1751551910099,1.1585,2628.3,2627.8,3.80539365]
[1751551910425,1.1585,2628.3,2627.4,4.27612169]
[1751551910426,1.1585,2628.3,2628.0,3.80503792]
[1751551910624,1.1585,2628.3,2628.0,3.80507259]
[1751551910794,1.1585,2628.3,2627.9,3.80524737]
[1751551910994,4.96324819,2628.3,2627.9,3.80524737]
[1751551911194,1.1585,2628.3,2627.9,3.80524737]
[1751551911605,3.80492455,2628.2,2627.7,12.01855402]
[1751551911796,4.96328611,2628.3,2627.8,3.80539989]
[1751551912211,3.8050309,2628.1,2627.4,0.47014054]
[1751551912417,3.80512994,2628.1,2627.5,3.80575928]
[1751551912838,3.80494318,2628.2,2627.5,12.01875928]
[1751551913003,3.80525792,2628.0,2627.5,12.01882423]
[1751551913201,3.80525792,2628.0,2627.6,3.80575333]
[1751551913405,3.8050812,2628.1,2627.6,3.80575333]
[1751551913723,4.70366857,2628.1,2627.6,3.80575333]
[1751551913892,4.70366857,2628.1,2627.4,3.80600157]
[1751551913893,3.80533449,2627.9,2627.4,3.80600157]
[1751551914097,4.97693449,2627.9,2627.4,12.01900157]
[1751551914297,3.80563385,2627.7,2627.2,3.80625586]
[1751551914524,4.97699496,2627.9,2627.4,3.80602862]
[1751551914694,4.97699496,2627.9,2627.3,8.212]
[1751551914695,4.68372301,2627.8,2627.3,12.01813132]
[1751551914895,0.87822203,2627.8,2627.4,3.80603998]
[1751551915099,0.87822203,2627.8,2627.5,3.80577833]
[1751551915330,1.1716,2627.9,2627.6,3.8057543]
[1751551915528,4.97692234,2627.9,2627.3,8.212]
[1751551915832,1.1716,2627.9,2627.6,3.80565338]
[1751551916030,3.80547808,2627.8,2627.3,12.01812419]
[1751551916325,4.97698626,2627.9,2627.4,3.8060311]
[1751551916499,0.87822438,2627.8,2627.4,3.8060311]
[1751551916696,0.87822438,2627.8,2627.5,3.80587213]
[1751551916907,0.87822438,2627.8,2627.4,3.80597576]
[1751551917229,0.87822438,2627.8,2627.6,3.80568091]
[1751551917423,1.1716,2627.9,2627.6,0.03805754]
[1751551917618,1.1716,2627.9,2627.8,3.80546464]
[1751551918703,1.1716,2628.2,2627.9,3.80528585]
[1751551919029,1.1716,2628.2,2627.8,3.80546464]
[1751551919030,1.1716,2628.2,2627.5,3.80587414]
[1751551919231,1.1716,2628.2,2628.1,3.80503024]
[1751551919530,8.212,2628.7,2628.1,3.84308054]
[1751551919531,1.2332,2628.7,2628.1,3.84308054]
[1751551919730,5.03736289,2628.7,2628.1,3.80503024]
[1751551920030,6.13458861,2628.7,2628.2,3.80482064]
[1751551920226,6.13460244,2628.7,2627.9,3.80531983]
[1751551920428,1.2332,2628.7,2627.9,0.55]
[1751551920602,1.2332,2628.7,2627.8,12.01741486]
[1751551920603,1e-08,2628.8,2628.5,3.80442595]
[1751551920801,1e-08,2628.8,2628.7,3.80416175]
[1751551921302,1e-08,2628.8,2628.7,14.35416175]
[1751551921513,1e-08,2628.8,2628.7,3.80416175]
[1751551921939,1e-08,2628.8,2628.7,5.93620814]
[1751551922544,1e-08,2628.8,2628.7,5.97424975]
[1751551922717,1e-08,2628.8,2628.7,5.93620814]
[1751551922915,0.92470001,2628.8,2628.0,0.28813284]
[1751551923145,0.92470001,2628.8,2628.5,3.80444207]
[1751551923350,0.92470001,2628.8,2628.6,3.80428749]
[1751551923721,0.92470001,2628.8,2628.5,3.80437915]
[1751551924055,3.80418978,2628.7,2628.1,0.02]
[1751551924350,0.9829,2628.3,2628.1,0.02]
[1751551926943,4.78775565,2628.3,2628.1,0.02]
[1751551927113,4.78773593,2628.3,2628.1,0.02]
[1751551927545,3.80488547,2628.2,2628.1,0.02]
[1751551927926,30.0,2628.6,2628.2,3.80480389]
[1751551928254,1.0046,2628.7,2628.3,3.80467944]
[1751551928617,3.80462051,2628.4,2628.1,0.02]
[1751551929020,1.0049,2628.3,2628.1,0.02]
[1751551929346,4.80964838,2628.3,2628.1,0.02]
[1751551929547,1.0049,2628.3,2628.1,0.02]
[1751551929857,4.80967603,2628.3,2628.1,0.02]
[1751551930024,3.80488547,2628.2,2628.1,0.02]
[1751551930560,36.85458547,2628.2,2628.1,0.02]
[1751551930724,15.06258547,2628.2,2628.1,0.02]
[1751551930923,15.06258547,2628.2,2627.4,0.03806043]
[1751551930924,3.80589914,2627.5,2627.4,0.03806043]
[1751551931123,3.80589914,2627.5,2627.1,0.02]
[1751551931124,0.9426,2627.5,2627.1,0.02]
[1751551931420,0.9426,2627.5,2627.1,3.86442491]
[1751551931623,0.9426,2627.5,2627.1,3.86446898]
[1751551931829,0.9426,2627.5,2627.1,0.02]
[1751551932025,0.9426,2627.5,2627.1,3.82646054]
[1751551932851,0.9426,2627.5,2627.2,3.80632629]
[1751551933423,0.9426,2627.5,2627.3,3.80615177]
[1751551933757,0.9426,2627.5,2627.3,3.80611744]
[1751551933948,0.9426,2627.5,2627.4,3.80604399]
[1751551934154,0.9426,2627.5,2627.2,0.03806333]
[1751551934353,0.9426,2627.5,2627.2,3.80625764]
[1751551934554,1.41742327,2627.5,2627.1,0.02]
[1751551934944,0.9426,2627.5,2627.4,3.80604399]
[1751551935552,0.9426,2627.5,2627.3,3.80607935]
[1751551935739,0.9426,2627.5,2627.1,3.86448658]
[1751551935956,0.9426,2627.5,2627.3,3.80605552]
[1751551936353,0.9426,2627.5,2627.2,3.80628316]
[1751551936563,0.9426,2627.5,2627.3,3.80615422]
[1751551937639,0.9426,2627.5,2627.2,3.80626368]
[1751551937948,0.9426,2627.5,2627.3,3.80618468]
[1751551938664,0.9366,2627.8,2627.4,3.80603183]
[1751551939178,0.9366,2627.8,2627.2,3.80627952]
[1751551939368,4.74209295,2627.8,2627.3,3.80610924]
[1751551939572,0.9366,2627.8,2627.4,3.80603499]
[1751551940367,0.9366,2627.8,2627.5,3.80589467]
[1751551940681,0.9497,2628.1,2627.8,3.80542932]
[1751551940988,0.9497,2628.1,2627.6,3.84372162]
[1751551941278,4.75483525,2628.1,2627.6,3.80566408]
[1751551941639,3.80518165,2628.0,2627.6,3.80566408]
[1751551941837,0.9497,2628.1,2627.5,0.03805899]
[1751551942148,0.9497,2628.1,2627.8,3.80539714]
[1751551942344,0.9497,2628.1,2627.2,12.01431529]
[1751551942345,2.55024544,2628.1,2627.2,8.208]
[1751551942538,2.55024544,2628.1,2627.1,0.02]
[1751551942539,3.80533366,2627.9,2627.4,3.80597482]
[1751551943470,3.80533366,2627.9,2627.5,3.8058714]
[1751551943662,3.8052599,2628.0,2627.5,3.80588039]
[1751551943966,3.80543408,2627.9,2627.1,0.02]
[1751551944168,5.44094015,2627.9,2627.2,3.80633373]
[1751551944368,3.80557307,2627.8,2627.3,3.80617276]
[1751551944672,1.0168,2627.6,2627.3,3.80607412]
[1751551945183,1.0168,2627.9,2627.6,3.80569287]
[1751551945465,0.9765,2628.4,2627.7,0.03805609]
[1751551945677,0.9765,2628.4,2628.1,3.8049153]
[1751551946037,0.9765,2628.4,2627.8,3.80537033]
[1751551946245,0.9765,2628.4,2627.9,3.80529799]
[1751551946446,0.9765,2628.4,2628.0,3.84313255]
[1751551946648,4.78110494,2628.4,2628.0,3.8050808]
[1751551946877,0.9765,2628.4,2628.0,3.8050808]
[1751551947144,4.78111421,2628.4,2628.0,3.8050808]
[1751551947843,2.04584488,2628.4,2626.2,3.80768952]
[1751551948068,2.04584488,2628.4,2627.8,3.80543946]
[1751551948069,3.80484247,2628.3,2627.8,3.80543946]
[1751551948282,3.80484247,2628.3,2627.8,3.80538176]
[1751551948886,0.9575,2628.0,2627.0,2.107]
[1751551949187,0.9575,2628.0,2627.6,3.80573987]
[1751551949357,10.9575,2628.0,2627.7,3.80560276]
[1751551949559,0.9575,2628.0,2627.4,3.80595479]
[1751551949774,0.9575,2628.0,2627.6,3.8057543]
[1751551949970,0.9575,2628.0,2627.4,3.80598058]
[1751551950170,3.80549054,2627.8,2627.3,3.80611263]
[1751551950396,3.80549054,2627.8,2627.4,3.80604289]
[1751551950595,3.80549054,2627.8,2627.3,3.80610824]
[1751551950756,3.80549054,2627.8,2627.4,3.80604279]
[1751551951092,3.0655,2628.0,2627.5,3.8058669]
[1751551951297,7.5578143,2628.0,2627.5,3.8058669]
[1751551951510,3.0655,2628.0,2627.6,3.80568104]
[1751551951686,0.9575,2628.0,2627.7,3.80560893]
[1751551952484,4.76269357,2628.0,2627.5,3.80581644]
[1751551953289,0.9384,2628.7,2627.7,10.55]
[1751551953499,0.9384,2629.0,2628.0,0.55]
[1751551953788,0.9384,2629.0,2628.1,8.2420503]
[1751551953989,0.9384,2629.0,2628.6,3.80423788]
[1751551954287,4.74218553,2629.0,2628.3,3.80467275]
[1751551954451,4.74218553,2629.0,2627.9,12.00929533]
[1751551954452,0.9384,2629.0,2628.6,3.80429941]
[1751551955162,33.80408374,2628.8,2627.9,8.204]
[1751551955369,7.18666584,2628.7,2628.2,3.80480537]
[1751551955569,13.80407125,2628.8,2628.3,3.80472879]
[1751551955800,10.00000001,2628.8,2628.4,3.80459299]
[1751551955954,30.00000001,2628.8,2628.5,3.80444644]
[1751551956157,1e-08,2628.8,2628.2,3.80483314]
[1751551956373,1e-08,2628.8,2628.4,3.8045808]
[1751551956578,1e-08,2628.8,2628.4,3.80452171]
[1751551956962,3.80403301,2628.8,2628.3,3.80467689]
[1751551957192,0.56004018,2628.8,2628.3,3.80467689]
[1751551957381,3.80417128,2628.7,2628.2,3.80480868]
[1751551957700,1.0147,2628.6,2628.2,3.80480868]
[1751551958187,1.0147,2628.6,2627.9,3.80529874]
[1751551958488,0.01,2628.7,2628.5,3.8044512]
[1751551958692,0.01,2628.7,2628.6,3.80430647]
[1751551959499,0.01,2628.7,2628.4,3.80451153]
[1751551959797,0.01,2628.7,2628.0,13.20689654]
[1751551960208,0.01,2628.7,2628.5,3.80433446]
[1751551960500,0.01,2628.7,2628.6,3.80430647]
[1751551961076,0.01,2628.7,2628.5,3.8043855]
[1751551961689,0.01,2628.7,2628.4,3.80452102]
[1751551962082,0.01,2628.7,2628.5,3.80432513]
[1751551963200,0.01,2628.7,2628.6,3.80430647]
[1751551963699,0.01,2628.7,2628.5,3.80443345]
[1751551963700,0.01,2628.7,2628.5,3.80439578]
[1751551964005,0.01,2628.7,2628.6,3.80430647]
[1751551965297,0.01,2628.7,2628.6,5.1189849]
[1751551966074,0.01,2628.7,2628.6,4.5689849]
[1751551966400,0.01,2628.7,2628.6,3.80430647]
[1751551969394,0.01,2628.7,2628.6,4.35430647]
[1751551970615,0.01,2628.7,2628.1,13.80500769]
[1751551970616,0.01,2628.7,2628.4,8.196]
[1751551970799,0.01,2628.7,2628.6,3.80430647]
[1751551971977,0.01,2628.7,2628.0,1.20072987]
[1751551972203,0.01,2628.7,2628.4,3.80453502]
[1751551972710,0.01,2628.7,2628.4,3.80452673]
[1751551972899,0.01,2628.7,2628.5,3.80442768]
[1751551973093,0.01,2628.7,2628.6,3.80430647]
[1751551973418,0.01,2628.7,2628.6,3.84234953]
[1751551975314,0.01,2628.7,2628.6,5.42642725]
[1751551975608,0.01,2628.7,2628.6,5.38838419]
[1751551975910,0.01,2628.7,2628.6,13.58038419]
[1751551976112,0.01,2628.7,2628.6,11.99630647]
[1751551976285,0.9516,2628.7,2627.6,0.28932437]
[1751551976486,0.9516,2628.7,2628.2,3.80475918]
[1751551976680,4.75576818,2628.7,2628.2,3.80475918]
[1751551976880,2.69535376,2628.7,2628.3,3.80470768]
[1751551977094,2.69535376,2628.7,2628.3,0.0380474]
[1751551977095,0.9516,2628.7,2628.3,0.0380474]
[1751551977296,0.01,2628.7,2628.6,3.80430647]
[1751551977496,0.01,2628.7,2628.6,3.84234953]
[1751551978686,0.01,2628.7,2628.3,3.80470009]
[1751551978687,0.01,2628.7,2628.0,0.55]
[1751551978884,1.0014,2628.6,2628.2,3.80487571]
[1751551979111,1.0014,2628.6,2628.3,3.8047407]
[1751551979500,1.0014,2628.6,2628.3,3.8046859]
[1751551979710,1.0014,2628.6,2628.5,3.8044512]
[1751551979910,1.0014,2628.6,2628.4,3.80452037]
[1751551980716,1.0014,2628.6,2628.4,3.84256632]
[1751551981221,0.01,2628.7,2628.6,3.80430647]
[1751551981426,0.01,2628.7,2628.6,3.84234953]
[1751551981633,0.01,2628.7,2628.6,3.80430647]
[1751551982405,0.01,2628.7,2628.5,8.95373049]
[1751551982729,0.01,2628.7,2628.6,3.80430647]
[1751551983710,0.01,2628.7,2628.6,3.84234953]
[1751551984824,0.01,2628.7,2628.6,3.80430647]
[1751551985527,0.01,2628.7,2628.6,4.35430647]
[1751551987032,0.01,2628.7,2628.6,3.80430647]
[1751551987219,0.01,2628.7,2628.5,8.186]
[1751551987402,0.01,2628.7,2628.6,3.80430647]
[1751551987598,0.01,2628.7,2628.1,0.55]
[1751551987923,0.8021,2628.6,2628.1,8.186]
[1751551988096,0.8021,2628.6,2628.2,3.80488547]
[1751551988297,0.8021,2628.6,2628.2,3.80480424]
[1751551988832,4.60641239,2628.6,2628.1,8.186]
[1751551989054,4.60641239,2628.6,2628.1,11.99095749]
[1751551989342,1.64414464,2628.6,2628.2,8.186]
[1751551989548,0.8021,2628.6,2628.0,0.02]
[1751551989731,0.8215,2628.4,2628.0,0.02]
[1751551989933,12.67188693,2628.6,2628.0,0.02]
[1751551989934,3.80503024,2628.1,2628.0,0.02]
[1751551990110,4.62983024,2628.1,2628.0,0.02]
[1751551990310,5.47330401,2628.1,2628.0,0.02]
[1751551990745,1.66827377,2628.1,2628.0,0.02]
[1751551991243,0.8248,2628.1,2628.0,0.02]
[1751551992042,6.73720077,2628.6,2628.0,0.02]
[1751551992043,1.60820126,2628.5,2628.3,3.80466709]
[1751551992242,1.60820126,2628.5,2628.1,3.80503024]
[1751551992243,0.7724,2628.5,2628.2,3.84286228]
[1751551992629,0.7724,2628.5,2628.0,0.02]
[1751551992630,3.80466834,2628.4,2628.0,0.02]
[1751551992826,3.80490554,2628.2,2628.0,0.02]
[1751551993054,0.7724,2628.5,2628.0,0.02]
[1751551993243,0.7724,2628.5,2628.2,3.80479989]
[1751551993542,0.7724,2628.5,2628.1,3.8049922]
[1751551993754,0.7724,2628.5,2628.0,3.82505347]
[1751551993957,4.57685681,2628.5,2628.1,3.80495777]
[1751551994158,3.80472569,2628.4,2628.0,0.02]
[1751551994460,3.80459595,2628.4,2628.0,0.02]
[1751551995061,3.80503024,2628.1,2628.0,0.02]
[1751551995277,0.8463,2628.1,2628.0,0.02]
[1751551999054,10.848,2628.4,2628.0,0.02]
[1751551999241,10.848,2628.4,2628.0,3.8250846]
[1751551999440,3.80482599,2628.3,2628.0,0.02]
[1751551999663,3.80503024,2628.1,2628.0,0.02]
[1751551999874,34.64483024,2628.1,2628.0,0.02]
[1751552000555,4.64483024,2628.1,2628.0,0.02]
[1751552000759,35.48172342,2628.1,2628.0,0.02]
[1751552000953,39.3306159,2628.1,2628.0,0.02]
[1751552001345,39.33089885,2628.1,2628.0,0.02]
[1751552001979,9.33089885,2628.1,2628.0,0.02]
[1751552002183,4.64483024,2628.1,2628.0,0.02]
[1751552002390,34.64483024,2628.1,2628.0,0.02]
[1751552003058,35.48174501,2628.1,2628.0,0.02]
[1751552003854,5.48174501,2628.1,2628.0,0.02]
[1751552004064,35.48174501,2628.1,2628.0,0.02]
[1751552004263,38.49372272,2628.1,2628.0,0.02]
[1751552005754,33.8057543,2627.6,2627.5,0.02]
[1751552005961,3.80633373,2627.2,2627.1,0.02]
[1751552006183,14.24505719,2627.2,2627.1,0.02]
[1751552006396,16.05018441,2627.2,2627.1,0.02]
[1751552006897,46.05018441,2627.2,2627.1,0.02]
[1751552007893,36.45286095,2627.2,2627.1,0.02]
[1751552008097,38.55086095,2627.2,2627.1,0.02]
[1751552008593,18.14818441,2627.2,2627.1,0.02]
[1751552008801,14.65972352,2627.0,2626.7,0.02]
[1751552009090,44.25733681,2626.8,2626.7,0.02]
[1751552009291,3.8079281,2626.1,2626.0,1e-08]
[1751552009493,0.7879,2625.5,2625.0,3.80941866]
[1751552009711,0.7879,2625.5,2625.0,3.8095238]
[1751552010002,3.80916459,2625.3,2624.6,3.81006049]
[1751552010328,3.80916459,2625.3,2624.1,0.01]
[1751552010330,3.81068516,2624.2,2624.1,0.01]
[1751552010462,42.48322346,2624.2,2624.1,0.01]
[1751552010657,46.29390862,2624.2,2624.1,0.01]
[1751552010961,46.29390862,2624.2,2624.1,1e-08]
[1751552011273,33.81112085,2623.9,2623.8,0.02]
[1751552011481,33.7622103,2623.9,2623.8,0.02]
[1751552011657,10.7879,2624.2,2623.8,0.02]
[1751552011861,0.7879,2624.2,2623.8,0.02]
[1751552012060,0.7879,2624.2,2623.9,3.81112085]
[1751552012260,30.0,2624.5,2623.9,0.0381112]
[1751552012560,30.0,2624.4,2623.8,3.83120104]
[1751552012887,3.81112085,2623.9,2623.8,0.02]
[1751552013092,35.90912085,2623.9,2623.8,0.02]
[1751552013961,32.098,2623.9,2623.8,0.02]
[1751552014198,44.09212085,2623.9,2623.8,0.02]
[1751552015104,30.0,2623.9,2623.8,0.02]
[1751552015264,2.099,2623.9,2623.8,0.02]
[1751552015660,0.8128,2624.0,2623.8,3.8312661]
[1751552015892,2.9118,2624.0,2623.8,0.02]
[1751552016592,0.8128,2624.0,2623.9,3.81112085]
[1751552016777,2.099,2624.1,2623.8,3.83121663]
[1751552016988,2.099,2624.1,2623.8,0.02]
[1751552017371,3.50835625,2624.1,2623.8,0.02]
[1751552017683,34.63132085,2623.9,2623.8,0.02]
[1751552017875,41.0962,2623.9,2623.8,0.02]
[1751552018071,0.8202,2623.9,2623.8,0.02]
[1751552018271,11.0962,2623.9,2623.8,0.02]
[1751552018475,1.40935625,2624.1,2623.8,0.02]
[1751552018684,2.093,2624.1,2623.9,3.81104213]
[1751552018887,2.093,2624.1,2623.8,0.02]
[1751552019791,5.90384628,2624.1,2623.8,0.02]
[1751552020302,3.81112085,2623.9,2623.8,0.02]
[1751552020600,2.093,2624.0,2623.8,0.02]
[1751552020778,11.52951251,2623.9,2623.8,0.02]
[1751552020973,2.093,2624.0,2623.8,0.02]
[1751552021297,0.7825,2624.2,2623.8,0.02]
[1751552021495,2.093,2624.5,2623.9,0.0381112]
[1751552021798,2.093,2624.5,2624.1,3.81075421]
[1751552021968,2.093,2624.5,2624.0,3.81090964]
[1751552022163,15.9033305,2624.5,2623.9,3.81110114]
[1751552022396,12.093,2624.5,2624.0,3.8109756]
[1751552022796,2.093,2624.5,2623.8,0.02]
[1751552023103,2.093,2624.5,2623.9,3.84923205]
[1751552023297,13.57869258,2624.5,2623.8,0.02]
[1751552023490,3.81049846,2624.4,2623.8,3.83124999]
[1751552023892,3.81049846,2624.4,2623.9,3.81110623]
[1751552024093,3.81057807,2624.3,2623.8,3.83120794]
[1751552024282,3.81046105,2624.4,2623.9,3.8111204]
[1751552024484,7.38895727,2624.5,2623.9,3.81111827]
[1751552024680,2.094,2624.6,2623.8,0.02]
[1751552024995,2.094,2624.6,2624.5,3.81024957]
[1751552025900,2.094,2624.6,2624.3,3.81048799]
[1751552026106,2.094,2624.6,2623.8,0.02]
[1751552026304,2.094,2624.6,2624.4,3.81031932]
[1751552026614,2.094,2624.6,2624.0,0.55]
[1751552026810,2.094,2624.6,2624.5,3.81024957]
[1751552027218,2.094,2624.6,2624.4,3.81031813]
[1751552027534,2.094,2624.6,2623.8,0.02]
[1751552027535,30.0,2624.5,2623.8,0.02]
[1751552027729,0.7939,2624.5,2623.8,0.02]
[1751552027881,3.81065841,2624.3,2623.8,0.02]
[1751552028081,4.57282468,2624.2,2623.8,0.02]
[1751552028305,3.81108869,2624.0,2623.8,0.02]
[1751552028507,3.81083455,2624.1,2623.8,0.02]
[1751552029328,3.81085837,2624.1,2623.8,0.02]
[1751552029626,4.63582085,2623.9,2623.8,0.02]
[1751552029795,7.46773475,2623.9,2623.8,0.02]
[1751552031694,37.46773475,2623.9,2623.8,0.02]
[1751552033403,37.46773475,2623.9,2623.8,1e-08]
[1751552033605,33.81170192,2623.5,2623.4,0.01]
[1751552033807,52.34342538,2623.5,2623.4,0.01]
[1751552033993,56.19231786,2623.5,2623.4,0.01]
[1751552034194,56.19231786,2623.5,2623.3,1e-08]
[1751552034442,35.90584722,2623.4,2623.3,1e-08]
[1751552034891,34.63831923,2622.8,2622.7,0.01]
[1751552035091,44.91231923,2622.8,2622.7,0.01]
[1751552035337,48.76121171,2622.8,2622.7,0.01]
[1751552037347,14.94849248,2622.8,2622.7,0.01]
[1751552037506,4.63831923,2622.8,2622.7,0.01]
[1751552037705,14.91231923,2622.8,2622.7,0.01]
[1751552038131,44.91231923,2622.8,2622.7,0.01]
[1751552038724,14.91231923,2622.8,2622.7,0.01]
[1751552038928,3.81330079,2622.4,2622.3,0.01]
[1751552039103,52.3532721,2622.4,2622.3,0.01]
[1751552039298,23.21997431,2622.4,2622.3,0.01]
[1751552039506,53.21997431,2622.4,2622.3,0.01]
[1751552040122,54.03637431,2622.4,2622.3,1e-08]
[1751552040318,56.13237431,2622.4,2622.3,1e-08]
[1751552040532,65.29537431,2622.4,2622.3,1e-08]
[1751552041560,55.01937431,2622.4,2622.3,1e-08]
[1751552041930,55.69705085,2622.4,2622.3,1e-08]
[1751552042319,65.29437431,2622.4,2622.3,1e-08]
[1751552043319,55.01937431,2622.4,2622.3,1e-08]